fUST/lending_fUST_20250713
["ID","MTS","AMOUNT","RATE_DAILY","PERIOD"]
[371762467,1752419469461,-475.78146136,0.00020821,2]
[371762468,1752419469471,-460.0,0.00020821,2]
[371762469,1752419469482,-460.0,0.00020821,2]
[371762470,1752419469491,-193.52613,0.00020821,2]
[371762471,1752419469501,-193.52613,0.00020821,2]
[371762472,1752419469511,-460.0,0.00020821,2]
[371762473,1752419469520,-460.0,0.00020821,2]
[371762474,1752419469529,-2850.19,0.00020821,2]
[371762475,1752419469540,-517.19,0.00020821,2]
[371762476,1752419469550,-564.42,0.00020821,2]
[371762477,1752419469559,-1941.3,0.00020821,2]
[371762478,1752419469569,-781.28,0.00020821,2]
[371762479,1752419469579,-460.0,0.00020821,2]
[371762480,1752419469591,-460.0,0.00020821,2]
[371762481,1752419469600,-460.0,0.00020821,2]
[371762482,1752419469610,-460.0,0.00020821,2]
[371762483,1752419469620,-1109.74,0.00020821,2]
[371762484,1752419469630,-460.0,0.00020821,2]
[371762485,1752419469640,-555.81,0.00020821,2]
[371762486,1752419469650,-460.0,0.00020821,2]
[371762487,1752419469659,-460.0,0.00020821,2]
[371762488,1752419469671,-496.75,0.00020821,2]
[371762489,1752419469681,-330.75,0.00020821,2]
[371762490,1752419469690,-1494.57,0.00020821,2]
[371762491,1752419469700,-741.45,0.00020821,2]
[371762492,1752419469709,-460.0,0.00020821,2]
[371762493,1752419469719,-601.87,0.00020821,2]
[371762494,1752419469728,-460.0,0.00020821,2]
[371762495,1752419469738,-460.0,0.00020821,2]
[371762496,1752419469747,-937.76,0.00020821,2]
[371762497,1752419469758,-927.21,0.00020821,2]
[371762498,1752419469767,-535.63,0.00020821,2]
[371762499,1752419469845,-328.28,0.00020821,2]
[371762500,1752419469856,-1964.64,0.00020821,2]
[371762501,1752419469867,-460.0,0.00020821,2]
[371762502,1752419469877,-546.3,0.00020821,2]
[371762503,1752419469887,-460.0,0.00020821,2]
[371762504,1752419469898,-821.8,0.00020821,2]
[371762505,1752419469908,-460.0,0.00020821,2]
[371762506,1752419469917,-460.0,0.00020821,2]
[371762507,1752419469927,-460.0,0.00020821,2]
[371762508,1752419469939,-826.45161168,0.00020981,2]
[371762509,1752419469949,-3540.67950815,0.00021061,2]
[371762510,1752419469959,-1729.494,0.00021095,2]
[371762511,1752419469969,-460.0,0.00021095,2]
[371762512,1752419469979,-460.0,0.00021095,2]
[371762513,1752419469990,-460.0,0.00021095,2]
[371762514,1752419470000,-460.0,0.00021095,2]
[371762515,1752419470010,-460.0,0.00021095,2]
[371762516,1752419470019,-2850.19,0.00021095,2]
[371762517,1752419470028,-517.19,0.00021095,2]
[371762518,1752419470038,-564.42,0.00021095,2]
[371762519,1752419470048,-1941.3,0.00021095,2]
[371762520,1752419470059,-781.28,0.00021095,2]
[371762521,1752419470068,-460.0,0.00021095,2]
[371762522,1752419470077,-460.0,0.00021095,2]
[371762523,1752419470087,-460.0,0.00021095,2]
[371762524,1752419470097,-592.01,0.00021095,2]
[371762525,1752419470106,-1109.74,0.00021095,2]
[371762526,1752419470116,-460.0,0.00021095,2]
[371762527,1752419470126,-555.81,0.00021095,2]
[371762528,1752419470135,-183.73971188,0.00021095,2]
[371762529,1752419470145,-460.0,0.00021095,2]
[371762530,1752419470154,-1494.57,0.00021095,2]
[371762531,1752419470164,-741.45,0.00021095,2]
[371762532,1752419470173,-601.87,0.00021095,2]
[371762533,1752419470183,-937.76,0.00021095,2]
[371762534,1752419470192,-927.21,0.00021095,2]
[371762535,1752419470202,-1964.64,0.00021095,2]
[371762536,1752419470211,-460.0,0.00021095,2]
[371762537,1752419470221,-546.3,0.00021095,2]
[371762538,1752419470231,-460.0,0.00021095,2]
[371762539,1752419470241,-821.8,0.00021095,2]
[371762540,1752419470252,-460.0,0.00021095,2]
[371762541,1752419470262,-460.0,0.00021095,2]
[371762542,1752419470271,-505.49074743,0.00021198,2]
[371762543,1752419470281,-1000.0,0.00021198,2]
[371762544,1752419470291,-223.0315306,0.00021212,2]
[371762545,1752419470301,-364.868119,0.00021327,2]
[371762546,1752419470310,-364.868119,0.00021327,2]
[371762547,1752419470320,-442.35934253,0.00021358,2]
[371762548,1752419470329,-460.0,0.00021369,2]
[371762549,1752419470339,-460.0,0.00021369,2]
[371762550,1752419470349,-460.0,0.00021369,2]
[371762551,1752419470358,-460.0,0.00021369,2]
[371762552,1752419470368,-460.0,0.00021369,2]
[371762553,1752419470377,-2850.19,0.00021369,2]
[371762554,1752419470387,-517.19,0.00021369,2]
[371762555,1752419470396,-564.42,0.00021369,2]
[371762556,1752419470405,-1941.3,0.00021369,2]
[371762557,1752419470415,-781.28,0.00021369,2]
[371762558,1752419470425,-460.0,0.00021369,2]
[371762559,1752419470435,-265.37,0.00021369,2]
[371762560,1752419470444,-191.08,0.00021369,2]
[371762561,1752419470454,-1109.74,0.00021369,2]
[371762562,1752419470464,-460.0,0.00021369,2]
[371762563,1752419470474,-555.81,0.00021369,2]
[371762564,1752419470484,-460.0,0.00021369,2]
[371762565,1752419470493,-1494.57,0.00021369,2]
[371762566,1752419470503,-741.45,0.00021369,2]
[371762567,1752419470512,-601.87,0.00021369,2]
[371762568,1752419470521,-937.76,0.00021369,2]
[371762569,1752419470530,-927.21,0.00021369,2]
[371762570,1752419470542,-1964.64,0.00021369,2]
[371762571,1752419470552,-460.0,0.00021369,2]
[371762572,1752419470562,-546.3,0.00021369,2]
[371762573,1752419470572,-318.9,0.00021369,2]
[371762574,1752419470582,-821.8,0.00021369,2]
[371762575,1752419470594,-460.0,0.00021369,2]
[371762576,1752419470604,-2327.45,0.000214,2]
[371762577,1752419470613,-486.2881869,0.00021412,2]
[371762578,1752419470623,-826.45161168,0.00021515,2]
[371762579,1752419470632,-359.5840379,0.00021641,2]
[371762580,1752419470642,-491.18,0.00021643,2]
[371762581,1752419470651,-460.0,0.00021643,2]
[371762582,1752419470660,-572.04,0.00021643,2]
[371762583,1752419470674,-481.98,0.00021643,2]
[371762584,1752419470683,-460.0,0.00021643,2]
[371762585,1752419470692,-2850.19,0.00021643,2]
[371762586,1752419470702,-517.19,0.00021643,2]
[371762587,1752419470711,-564.42,0.00021643,2]
[371762588,1752419470720,-1941.3,0.00021643,2]
[371762589,1752419470730,-781.28,0.00021643,2]
[371762590,1752419470740,-310.41,0.00021643,2]
[371762591,1752419470750,-1109.74,0.00021643,2]
[371762592,1752419470760,-551.21496917,0.00021643,2]
[371762593,1752419470771,-555.81,0.00021643,2]
[371762594,1752419470781,-460.0,0.00021643,2]
[371762595,1752419470791,-1494.57,0.00021643,2]
[371762596,1752419470800,-741.45,0.00021643,2]
[371762597,1752419470810,-601.87,0.00021643,2]
[371762598,1752419470819,-937.76,0.00021643,2]
[371762599,1752419470828,-927.21,0.00021643,2]
[371762600,1752419470837,-1964.64,0.00021643,2]
[371762601,1752419470847,-460.0,0.00021643,2]
[371762602,1752419470856,-546.3,0.00021643,2]
[371762603,1752419470865,-821.8,0.00021643,2]
[371762604,1752419470875,-460.0,0.00021643,2]
[371762605,1752419470884,-412.34,0.000217,2]
[371762606,1752419470894,-1679.57,0.000218,2]
[371762607,1752419470903,-577.183168,0.00021917,2]
[371762608,1752419470913,-577.183168,0.00021917,2]
[371762609,1752419470923,-151.0,0.00021917,2]
[371762610,1752419470932,-151.0,0.00021917,2]
[371762611,1752419470942,-301.582352,0.00021917,2]
[371762612,1752419470952,-265.04993,0.00021917,2]
[371762613,1752419470962,-265.04993,0.00021917,2]
[371762614,1752419471039,-460.0,0.00021917,2]
[371762615,1752419471049,-193.52613,0.00021917,2]
[371762616,1752419471059,-193.52613,0.00021917,2]
[371762617,1752419471069,-460.0,0.00021917,2]
[371762618,1752419471078,-2850.19,0.00021917,2]
[371762619,1752419471088,-517.19,0.00021917,2]
[371762620,1752419471098,-564.42,0.00021917,2]
[371762621,1752419471108,-1941.3,0.00021917,2]
[371762622,1752419471119,-781.28,0.00021917,2]
[371762623,1752419471130,-1109.74,0.00021917,2]
[371762624,1752419471141,-555.81,0.00021917,2]
[371762625,1752419471152,-460.0,0.00021917,2]
[371762626,1752419471162,-741.45,0.00021917,2]
[371762627,1752419471173,-1494.57,0.00021917,2]
[371762628,1752419471184,-601.87,0.00021917,2]
[371762629,1752419471194,-937.76,0.00021917,2]
[371762630,1752419471204,-927.21,0.00021917,2]
[371762631,1752419471213,-1964.64,0.00021917,2]
[371762632,1752419471223,-460.0,0.00021917,2]
[371762633,1752419471232,-546.3,0.00021917,2]
[371762634,1752419471242,-821.8,0.00021917,2]
[371762635,1752419471251,-460.0,0.00021917,2]
[371762636,1752419471260,-826.45161168,0.00022048,2]
[371762637,1752419471270,-202.195,0.00022123,2]
[371762638,1752419471280,-214.674,0.00022123,2]
[371762639,1752419471290,-248.989,0.00022123,2]
[371762640,1752419471299,-249.539,0.00022123,2]
[371762641,1752419471310,-259.666,0.00022123,2]
[371762642,1752419471319,-217.653,0.00022123,2]
[371762643,1752419471329,-182.87,0.00022191,2]
[371762644,1752419471339,-460.0,0.00022191,2]
[371762645,1752419471348,-2850.19,0.00022191,2]
[371762646,1752419471358,-517.19,0.00022191,2]
[371762647,1752419471369,-564.42,0.00022191,2]
[371762648,1752419471380,-1941.3,0.00022191,2]
[371762649,1752419471391,-781.28,0.00022191,2]
[371762650,1752419471401,-1109.74,0.00022191,2]
[371762651,1752419471411,-555.81,0.00022191,2]
[371762652,1752419471420,-422.86,0.00022191,2]
[371762653,1752419471430,-741.45,0.00022191,2]
[371762654,1752419471439,-1494.57,0.00022191,2]
[371762655,1752419471448,-601.87,0.00022191,2]
[371762656,1752419471457,-937.76,0.00022191,2]
[371762657,1752419471467,-927.21,0.00022191,2]
[371762658,1752419471477,-1964.64,0.00022191,2]
[371762659,1752419471486,-468.03,0.00022191,2]
[371762660,1752419471497,-546.3,0.00022191,2]
[371762661,1752419471506,-821.8,0.00022191,2]
[371762662,1752419471516,-567.64,0.00022191,2]
[371762663,1752419471526,-341.16,0.00022465,2]
[371762664,1752419471535,-2850.19,0.00022465,2]
[371762665,1752419471547,-517.19,0.00022465,2]
[371762666,1752419471557,-564.42,0.00022465,2]
[371762667,1752419471567,-1941.3,0.00022465,2]
[371762668,1752419471588,-781.28,0.00022465,2]
[371762669,1752419471608,-1109.74,0.00022465,2]
[371762670,1752419471626,-555.81,0.00022465,2]
[371762671,1752419471647,-741.45,0.00022465,2]
[371762672,1752419471665,-1494.57,0.00022465,2]
[371762673,1752419471682,-601.87,0.00022465,2]
[371762674,1752419471700,-937.76,0.00022465,2]
[371762675,1752419471714,-927.21,0.00022465,2]
[371762676,1752419471731,-1964.64,0.00022465,2]
[371762677,1752419471751,-546.3,0.00022465,2]
[371762678,1752419471771,-821.8,0.00022465,2]
[371762679,1752419471783,-231.28369723,0.00022581,2]
[371762680,1752419471804,-826.45161168,0.00022582,2]
[371762681,1752419471818,-2517.00401203,0.000226,2]
[371762682,1752419472600,-518.4,0.00016428,3]
[371762683,1752419472613,-460.0,0.00016438,2]
[371762684,1752419472623,-460.0,0.00016438,2]
[371762685,1752419472633,-460.0,0.00016438,2]
[371762686,1752419472642,-460.0,0.00016438,2]
[371762687,1752419472652,-460.0,0.00016712,2]
[371762688,1752419472661,-460.0,0.00016712,2]
[371762689,1752419472671,-460.0,0.00016712,2]
[371762690,1752419472682,-460.0,0.00016712,2]
[371762691,1752419472693,-138.54449379,0.00016986,2]
[371762692,1752419472706,-321.45550621,0.00016986,2]
[371762693,1752419472717,-460.0,0.00016986,2]
[371762694,1752419472728,-18.54449379,0.00016986,2]
[371762695,1752419472878,-460.0,0.00016438,2]
[371762696,1752419472888,-460.0,0.00016438,2]
[371762697,1752419472897,-460.0,0.00016712,2]
[371762698,1752419472907,-500.0,0.00016773,2]
[371762699,1752419472918,-441.45550621,0.00016986,2]
[371762700,1752419472929,-460.0,0.00016986,2]
[371762701,1752419472939,-460.0,0.0001726,2]
[371762702,1752419472949,-460.0,0.0001726,2]
[371762703,1752419472959,-460.0,0.0001726,2]
[371762704,1752419472969,-460.0,0.0001726,2]
[371762705,1752419472979,-2360.67150701,0.00017297,2]
[371762706,1752419472988,-164.73942471,0.00017321,2]
[371762707,1752419472998,-460.0,0.00017534,2]
[371762708,1752419473007,-464.899,0.00017534,2]
[371762709,1752419473017,-526.30995689,0.00017534,2]
[371762710,1752419473027,-2360.67150701,0.00017777,2]
[371762711,1752419473037,-460.0,0.00017808,2]
[371762712,1752419473049,-460.0,0.00018082,2]
[371762713,1752419473059,-460.0,0.00018082,2]
[371762714,1752419473069,-2360.67150701,0.00018256,2]
[371762715,1752419473078,-460.0,0.00018356,2]
[371762716,1752419473088,-467.72299978,0.00018356,2]
[371762717,1752419473098,-151.0,0.00018368,2]
[371762718,1752419473108,-460.0,0.0001863,2]
[371762719,1752419473117,-460.0,0.0001863,2]
[371762720,1752419473127,-514.40934441,0.00018904,2]
[371762721,1752419473137,-460.0,0.00018904,2]
[371762722,1752419473147,-460.0,0.00019178,2]
[371762723,1752419473156,-460.0,0.00019452,2]
[371762724,1752419473167,-460.0,0.00019726,2]
[371762725,1752419473176,-460.0,0.00019726,2]
[371762726,1752419473186,-460.0,0.0002,2]
[371762727,1752419473196,-480.3183155,0.0002,2]
[371762728,1752419473205,-460.0,0.00020273,2]
[371762729,1752419473215,-59.72774756,0.00020547,2]
[371762730,1752419473476,-400.27225244,0.00020547,2]
[371762731,1752419473485,-460.0,0.00020821,2]
[371762732,1752419473494,-109.15242356,0.00021095,2]
[371762733,1752419473505,-148.19757644,0.00021095,2]
[371762734,1752419473515,-482.99598797,0.000226,2]
[371762735,1752419473524,-382.394571,0.00022603,2]
[371762736,1752419473533,-3000.0,0.0002261,2]
[371762737,1752419473543,-1667.5884869,0.0002262,2]
[371762738,1752419480870,5000.0,0.000163,2]
[371762739,1752419496211,4620.15499517,0.000163,2]
[371762740,1752419496235,379.84500483,0.000163,2]
[371762741,1752419512115,5000.0,0.000163,2]
[371762742,1752419524754,320.71,0.00025,7]
[371762743,1752419528453,5000.0,0.000163,2]
[371762744,1752419529989,200.0,0.00024658,15]
[371762745,1752419533966,151.0,0.000249,7]
[371762746,1752419534530,151.0,0.00025,7]
[371762747,1752419541539,151.0,0.000249,7]
[371762748,1752419542575,151.0,0.00025,7]
[371762749,1752419543825,5000.0,0.000163,2]
[371762750,1752419552011,1343.65,0.000242,7]
[371762751,1752419559642,4620.15499517,0.000163,2]
[371762752,1752419559667,379.84500483,0.000163,2]
[371762753,1752419574748,5000.0,0.000163,2]
[371762754,1752419605296,5000.0,0.000163,2]
[371762761,1752419620383,5000.0,0.000163,2]
[371762762,1752419622585,1210.81542381,0.00016437,7]
[371762763,1752419635709,4620.15499517,0.000163,2]
[371762764,1752419635735,379.84500483,0.000163,2]
[371762765,1752419651564,5000.0,0.000163,2]
[371762766,1752419662753,297.8,0.000237,7]
[371762767,1752419667779,5000.0,0.000163,2]
[371762769,1752419683102,5000.0,0.000163,2]
[371762771,1752419699334,4620.15499517,0.000163,2]
[371762772,1752419699358,379.84500483,0.000163,2]
[371762774,1752419702469,151.0,0.000249,7]
[371762775,1752419703015,151.0,0.00025,7]
[371762777,1752419715034,5000.0,0.000163,2]
[371762779,1752419731365,5000.0,0.000163,2]
[371762781,1752419751900,1377.25,0.000227,7]
[371762782,1752419755110,151.0,0.000249,7]
[371762783,1752419755239,151.0,0.00024368,7]
[371762784,1752419755382,151.0,0.00023837,6]
[371762785,1752419755533,151.0,0.00023305,6]
[371762786,1752419761525,5000.0,0.000163,2]
[371762787,1752419775822,270.396989,0.000249,7]
[371762788,1752419776329,270.396989,0.00025,7]
[371762789,1752419777803,4620.15499517,0.000163,2]
[371762790,1752419777828,379.84500483,0.000163,2]
[371762791,1752419781262,270.396989,0.000249,7]
[371762792,1752419781685,270.396989,0.00025,7]
[371762793,1752419798806,5000.0,0.00025,5]
[371762794,1752419803724,309.25,0.000227,7]
[371762796,1752419814667,5000.0,0.00025,5]
[371762797,1752419829869,5000.0,0.00025,5]
[371762798,1752419845655,5000.0,0.00025,5]
[371762799,1752419848935,2019.151962,0.000249,7]
[371762800,1752419849314,2019.151962,0.00025,7]
[371762801,1752419856867,2019.151962,0.000249,7]
[371762802,1752419857366,2019.151962,0.00025,7]
[371762803,1752419862494,5000.0,0.00025,5]
[371762804,1752419878803,5000.0,0.00025,5]
[371763236,1752419894179,5000.0,0.00025,5]
[371763237,1752419910017,5000.0,0.00025,5]
[371763321,1752419923180,563.44589298,0.00025,6]
[371763322,1752419924398,52603.85946968,0.000249,7]
[371763323,1752419926798,5000.0,0.00025,5]
[371763324,1752419944815,309.25,0.000225,7]
[371763325,1752419950276,1407.48,0.000225,7]
[371763326,1752419956769,5000.0,0.00025,5]
[371763328,1752419972540,5000.0,0.00025,5]
[371763329,1752419987747,5000.0,0.00025,5]
[371763330,1752420004152,5000.0,0.00025,5]
[371763331,1752420004498,271.87934364,0.00025318,50]
[371763334,1752420019618,5000.0,0.00025,5]
[371763335,1752420021109,438.29888,0.00013699,2]
[371763336,1752420033129,200.0,0.00016986,10]
[371763337,1752420033546,200.0,0.00016986,10]
[371763338,1752420033896,200.0,0.00016986,10]
[371763339,1752420034253,200.0,0.00016986,10]
[371763340,1752420034328,370.422427,0.00022465,7]
[371763341,1752420034653,200.0,0.00016986,10]
[371763342,1752420034709,370.422427,0.00025,7]
[371763343,1752420034861,3157.04830194,0.00025,5]
[371763344,1752420035178,200.0,0.00016986,10]
[371763345,1752420035431,200.0,0.00016986,10]
[371763346,1752420035912,200.0,0.00016986,10]
[371763347,1752420036913,200.0,0.00016986,10]
[371763348,1752420037337,200.0,0.00016986,10]
[371763349,1752420037765,240.604756,0.00016986,10]
[371763350,1752420038690,370.422427,0.00022465,7]
[371763351,1752420039128,370.422427,0.00025,7]
[371763352,1752420064888,151.0,0.00025,7]
[371763353,1752420068648,151.0,0.00025,7]
[371763354,1752420078998,5000.0,0.00025,5]
[371763355,1752420085061,247.4,0.000222,7]
[371763356,1752420085560,247.4,0.00025,7]
[371763357,1752420087001,110710.6631575,0.00025,5]
[371763358,1752420095169,5000.0,0.00025,5]
[371763359,1752420108417,218.281526,0.00025,7]
[371763360,1752420113554,218.281526,0.00025,7]
[371763361,1752420125542,5000.0,0.00025,5]
[371763362,1752420141088,5000.0,0.00025,5]
[371763363,1752420141361,151.0,0.00025,7]
[371763364,1752420147000,151.0,0.00025,7]
[371763365,1752420149477,1266.73,0.00022,7]
[371763366,1752420150631,1266.73,0.000249,7]
[371763368,1752420155372,226.770934,0.00025,7]
[371763369,1752420157769,5000.0,0.00025,5]
[371763370,1752420159869,226.770934,0.00025,7]
[371763371,1752420174730,5000.0,0.00025,5]
[371763372,1752420189991,5000.0,0.00025,5]
[371763373,1752420200189,151.0,0.00025,7]
[371763374,1752420205297,5000.0,0.00025,5]
[371763375,1752420205352,151.0,0.00025,7]
[371763376,1752420206995,151.0,0.000249,7]
[371763377,1752420207412,151.0,0.00025,7]
[371763380,1752420224686,5000.0,0.00025,5]
[371763381,1752420226498,197.92,0.000248,7]
[371763385,1752420316521,5000.0,0.00025,5]
[371763386,1752420328747,151.0,0.000249,7]
[371763387,1752420329231,151.0,0.00025,7]
[371763388,1752420329605,151.0,0.00025,7]
[371763389,1752420333256,151.0,0.000249,7]
[371763390,1752420333638,151.0,0.00025,7]
[371763391,1752420333929,5000.0,0.00025,5]
[371763392,1752420335152,151.0,0.00025,7]
[371763393,1752420340903,151.0,0.000249,7]
[371763394,1752420341359,151.0,0.00025,7]
[371763395,1752420348463,1013.38,0.000225,7]
[371763396,1752420350082,5000.0,0.00025,5]
[371763397,1752420360037,151.0,0.00025,7]
[371763398,1752420365583,178.13,0.000222,7]
[371763399,1752420365731,5000.0,0.00025,5]
[371763400,1752420366073,178.13,0.00025,7]
[371763402,1752420381767,5000.0,0.00025,5]
[371763403,1752420392315,151.0,0.000249,7]
[371763404,1752420392915,151.0,0.00025,7]
[371763405,1752420397234,5000.0,0.00025,5]
[371763406,1752420413100,5000.0,0.00025,5]
[371763408,1752420429503,5000.0,0.00025,5]
[371763409,1752420445076,5000.0,0.00025,5]
[371763410,1752420460368,5000.0,0.00025,5]
[371763412,1752420480508,288.591584,0.000249,7]
[371763413,1752420481128,288.591584,0.00025,7]
[371763414,1752420483800,245.81139,0.00015438,2]
[371763415,1752420485799,288.591584,0.000249,7]
[371763416,1752420486272,288.591584,0.00025,7]
[371763417,1752420510022,332.44044068,0.00024,14]
[371763418,1752420512025,158.34,0.000221,7]
[371763419,1752420512489,158.34,0.000248,7]
[371763420,1752420514576,151.0,0.00025,7]
[371763422,1752420515941,10946.59770194,0.000239,7]
[371763423,1752420516082,151.0,0.000249,7]
[371763424,1752420516147,550.80758542,0.0002469,10]
[371763426,1752420516341,634.46340465,0.00024,60]
[371763427,1752420516476,151.0,0.00025,7]
[371763430,1752420519449,151.0,0.00025,7]
[371763431,1752420520660,1784.64743273,0.00026,120]
[371763432,1752420521006,180.71713203,0.0002,120]
[371763433,1752420524592,917.49111,0.00025,5]
[371763436,1752420525770,178.74540477,0.00024,7]
[371763437,1752420525968,688.23,0.00024,14]
[371763439,1752420531220,152.106336,0.000249,7]
[371763454,1752420548820,912.05,0.00022,7]
[371763455,1752420548877,5000.0,0.00025,5]
[371763456,1752420549291,912.05,0.000246,7]
[371763459,1752420564041,5000.0,0.00025,5]
[371763460,1752420579888,5000.0,0.00025,5]
[371763461,1752420596047,5000.0,0.00025,5]
[371763462,1752420603269,153.6,0.0001611,10]
[371763463,1752420611041,195.703343,0.000249,7]
[371763464,1752420611483,195.703343,0.00025,7]
[371763465,1752420616553,195.703343,0.000249,7]
[371763466,1752420617097,195.703343,0.00025,7]
[371763467,1752420625998,5000.0,0.00025,5]
[371763490,1752420632810,-518.84824418,0.00016328,2]
[371763493,1752420632819,-300.0,0.00016337,2]
[371763494,1752420632829,-227.25375582,0.00016338,2]
[371763495,1752420632841,-3466.08145846,0.00016338,2]
[371763502,1752420638882,-3701.76201594,0.00016338,2]
[371763503,1752420638996,-9747.88338338,0.00016338,2]
[371763504,1752420639008,-311.31297657,0.00016338,2]
[371763505,1752420639108,-22054.08362983,0.00016338,2]
[371763506,1752420639119,-846.81,0.00016428,3]
[371763507,1752420639129,-500.71,0.00016428,3]
[371763508,1752420639139,-250.36,0.00016428,3]
[371763509,1752420639149,-751.09,0.00016428,3]
[371763510,1752420639159,-38354.49697856,0.00016437,2]
[371763511,1752420639169,-430.43109959,0.00016437,2]
[371763512,1752420639179,-489.07234547,0.00016437,2]
[371763513,1752420639190,-166.8231821,0.00016437,2]
[371763514,1752420639200,-218.39179228,0.00016437,2]
[371763515,1752420639210,-209.24196389,0.00016437,2]
[371763516,1752420639221,-500.0,0.00016437,2]
[371763517,1752420639230,-500.0,0.00016437,2]
[371763518,1752420639240,-500.0,0.00016437,2]
[371763519,1752420639250,-200.0,0.00016437,2]
[371763520,1752420639260,-629.91900585,0.00016437,2]
[371763521,1752420639269,-500.0,0.00016437,2]
[371763522,1752420639280,-500.0,0.00016437,2]
[371763523,1752420639290,-158.64266271,0.00016437,2]
[371763524,1752420639299,-453.7663879,0.00016437,2]
[371763525,1752420639311,-460.0,0.00016438,2]
[371763526,1752420639322,-460.0,0.00016438,2]
[371763527,1752420639332,-460.0,0.00016438,2]
[371763528,1752420639342,-460.0,0.00016438,2]
[371763529,1752420639352,-460.0,0.00016438,2]
[371763530,1752420639363,-460.0,0.00016438,2]
[371763531,1752420639373,-460.0,0.00016438,2]
[371763532,1752420639383,-460.0,0.00016438,2]
[371763533,1752420639392,-460.0,0.00016438,2]
[371763534,1752420639402,-461.6212784,0.00016438,2]
[371763535,1752420639412,-460.0,0.00016438,2]
[371763536,1752420639422,-460.0,0.00016438,2]
[371763537,1752420639432,-460.0,0.00016438,2]
[371763538,1752420639442,-460.0,0.00016438,2]
[371763539,1752420639453,-460.0,0.00016438,2]
[371763540,1752420639465,-460.0,0.00016438,2]
[371763541,1752420639475,-460.0,0.00016438,2]
[371763542,1752420639488,-460.0,0.00016438,2]
[371763543,1752420639498,-460.0,0.00016438,2]
[371763544,1752420639509,-460.0,0.00016438,2]
[371763545,1752420639520,-460.0,0.00016438,2]
[371763546,1752420639531,-387.85632089,0.00016438,2]
[371763547,1752420639542,-460.0,0.00016438,2]
[371763548,1752420639552,-460.0,0.00016438,2]
[371763549,1752420639564,-460.0,0.00016438,2]
[371763550,1752420639574,-459.11770519,0.00016438,2]
[371763551,1752420639584,-460.0,0.00016438,2]
[371763552,1752420639594,-460.0,0.00016438,2]
[371763553,1752420639604,-460.0,0.00016438,2]
[371763554,1752420639613,-460.0,0.00016438,2]
[371763555,1752420639623,-461.22566897,0.00016438,2]
[371763556,1752420639633,-460.0,0.00016438,2]
[371763557,1752420639642,-460.0,0.00016438,2]
[371763558,1752420639652,-460.0,0.00016438,2]